[Event "Live Chess"]
[Site "Chess.com"]
[Date "2023.05.20"]
[Round "-"]
[White "gmnorfolk"]
[Black "HoarseyHorsey"]
[Result "1-0"]
[WhiteElo "2127"]
[BlackElo "1422"]
[TimeControl "300"]
[EndTime "14:58:15 PDT"]
[Termination "gmnorfolk won on time"]

1. d4 {[%clk 0:04:57.8]} 1... Nf6 {[%clk 0:04:58.5]} 2. c4 {[%clk 0:04:55.5]}
2... e6 {[%clk 0:04:57.4]} 3. Nc3 {[%clk 0:04:54.1]} 3... d5 {[%clk 0:04:56.9]}
4. cxd5 {[%clk 0:04:52.3]} 4... exd5 {[%clk 0:04:56.3]} 5. Bg5 {[%clk
0:04:49.4]} 5... Be7 {[%clk 0:04:52.3]} 6. e3 {[%clk 0:04:47.2]} 6... O-O {[%clk
0:04:51.4]} 7. Bd3 {[%clk 0:04:43.6]} 7... c6 {[%clk 0:04:50.6]} 8. Qc2 {[%clk
0:04:37.7]} 8... h6 {[%clk 0:04:46.9]} 9. Bh4 {[%clk 0:04:35.4]} 9... Be6 {[%clk
0:04:41.3]} 10. Nge2 {[%clk 0:04:34.4]} 10... Nbd7 {[%clk 0:04:38.8]} 11. O-O
{[%clk 0:04:30]} 11... Qc7 {[%clk 0:04:30]} 12. f3 {[%clk 0:04:26.8]} 12... a6
{[%clk 0:04:29]} 13. Rad1 {[%clk 0:04:22.6]} 13... Bd6 {[%clk 0:04:27.9]} 14. h3
{[%clk 0:04:20.9]} 14... Nh5 {[%clk 0:04:16.1]} 15. g4 {[%clk 0:04:05.7]} 15...
Ng3 {[%clk 0:04:04.4]} 16. Nxg3 {[%clk 0:04:04.4]} 16... Bxg3 {[%clk 0:04:03.1]}
17. Bxg3 {[%clk 0:04:03.9]} 17... Qxg3+ {[%clk 0:04:02.1]} 18. Qg2 {[%clk
0:04:03.5]} 18... Qd6 {[%clk 0:03:53.4]} 19. Bb1 {[%clk 0:03:56.3]} 19... Nf6
{[%clk 0:03:51.1]} 20. e4 {[%clk 0:03:53.6]} 20... dxe4 {[%clk 0:03:49.8]} 21.
fxe4 {[%clk 0:03:52.8]} 21... Bc4 {[%clk 0:03:43.8]} 22. e5 {[%clk 0:03:44.8]}
22... Bxf1 {[%clk 0:03:35.6]} 23. Qxf1 {[%clk 0:03:36.8]} 23... Qc7 {[%clk
0:03:26.7]} 24. exf6 {[%clk 0:03:26]} 24... Qg3+ {[%clk 0:03:22.3]} 25. Qg2
{[%clk 0:03:17.5]} 25... Qxg2+ {[%clk 0:03:21.1]} 26. Kxg2 {[%clk 0:03:16.8]}
26... gxf6 {[%clk 0:03:20.5]} 27. Ne4 {[%clk 0:03:15.7]} 27... Kg7 {[%clk
0:03:18.5]} 28. Rf1 {[%clk 0:03:13.8]} 28... Rad8 {[%clk 0:03:12.7]} 29. Nxf6
{[%clk 0:03:11.9]} 29... Rxd4 {[%clk 0:03:09]} 30. Nh5+ {[%clk 0:03:11.2]} 30...
Kh8 {[%clk 0:03:02.9]} 31. Rf6 {[%clk 0:03:07.9]} 31... Rd2+ {[%clk 0:02:57.6]}
32. Kg3 {[%clk 0:03:06.2]} 32... Rxb2 {[%clk 0:02:20]} 33. Rxh6+ {[%clk
0:03:00.4]} 33... Kg8 {[%clk 0:02:18.7]} 34. Bh7+ {[%clk 0:02:44.2]} 34... Kh8
{[%clk 0:02:14.2]} 35. g5 {[%clk 0:02:36.1]} 35... Rd8 {[%clk 0:02:04.6]} 36.
Bg6+ {[%clk 0:02:12.6]} 36... Kg8 {[%clk 0:01:58.6]} 37. Nf6+ {[%clk 0:02:00.2]}
37... Kg7 {[%clk 0:01:55.7]} 38. Bf5 {[%clk 0:01:44.7]} 38... Rxa2 {[%clk
0:01:06.7]} 39. Rh7+ {[%clk 0:01:20.1]} 39... Kf8 {[%clk 0:00:54.9]} 40. g6
{[%clk 0:01:18.3]} 40... fxg6 {[%clk 0:00:42.3]} 41. Bxg6 {[%clk 0:01:13.8]}
41... Ra3+ {[%clk 0:00:26.5]} 42. Kf4 {[%clk 0:01:07.2]} 42... Ra4+ {[%clk
0:00:19.5]} 43. Ke5 {[%clk 0:01:02.4]} 43... Ra5+ {[%clk 0:00:10.4]} 44. Ke6
{[%clk 0:00:57.9]} 1-0

[Event "Live Chess"]
[Site "Chess.com"]
[Date "2023.05.20"]
[Round "-"]
[White "Daniel_Gliddon_FA"]
[Black "omisoc"]
[Result "0-1"]
[WhiteElo "1394"]
[BlackElo "2137"]
[TimeControl "300"]
[EndTime "14:58:23 PDT"]
[Termination "omisoc won by checkmate"]

1. e4 {[%clk 0:04:54.1]} 1... c6 {[%clk 0:04:57.1]} 2. d4 {[%clk 0:04:52.6]}
2... d5 {[%clk 0:04:55.7]} 3. exd5 {[%clk 0:04:51.7]} 3... cxd5 {[%clk
0:04:54.1]} 4. Nf3 {[%clk 0:04:50.7]} 4... Nf6 {[%clk 0:04:51.8]} 5. c4 {[%clk
0:04:49.5]} 5... Nc6 {[%clk 0:04:49.3]} 6. Nc3 {[%clk 0:04:43.5]} 6... e6 {[%clk
0:04:48.3]} 7. Be2 {[%clk 0:04:39.6]} 7... Be7 {[%clk 0:04:43.7]} 8. O-O {[%clk
0:04:37.5]} 8... O-O {[%clk 0:04:42.2]} 9. c5 {[%clk 0:04:35.7]} 9... b6 {[%clk
0:04:39.8]} 10. cxb6 {[%clk 0:04:33.1]} 10... axb6 {[%clk 0:04:36]} 11. Bg5
{[%clk 0:04:30.3]} 11... Ne4 {[%clk 0:04:27.7]} 12. Nxe4 {[%clk 0:04:27.1]}
12... dxe4 {[%clk 0:04:25.5]} 13. Ne5 {[%clk 0:04:10.9]} 13... Bxg5 {[%clk
0:04:12.1]} 14. Nxc6 {[%clk 0:04:02.8]} 14... Qd6 {[%clk 0:04:10.6]} 15. Ne5
{[%clk 0:03:55.6]} 15... Bb7 {[%clk 0:04:06]} 16. f4 {[%clk 0:03:47.5]} 16...
exf3 {[%clk 0:04:02.1]} 17. Bxf3 {[%clk 0:03:46]} 17... Bxf3 {[%clk 0:03:57.1]}
18. Nxf3 {[%clk 0:03:44.2]} 18... Be3+ {[%clk 0:03:50.9]} 19. Kh1 {[%clk
0:03:40]} 19... f5 {[%clk 0:03:49.6]} 20. Qd3 {[%clk 0:03:31]} 20... f4 {[%clk
0:03:43.1]} 21. Ng5 {[%clk 0:03:25.3]} 21... Rf5 {[%clk 0:03:40.3]} 22. Rae1
{[%clk 0:03:16.3]} 22... Rxg5 {[%clk 0:03:31.7]} 23. Qb3 {[%clk 0:03:04.6]}
23... Qd5 {[%clk 0:03:24.1]} 24. Qxb6 {[%clk 0:03:00.9]} 24... Qxg2# {[%clk
0:03:22.2]} 0-1

[Event "Live Chess"]
[Site "Chess.com"]
[Date "2023.05.20"]
[Round "-"]
[White "TheSmoulderingMaster"]
[Black "Hoogleboogle"]
[Result "1-0"]
[WhiteElo "1708"]
[BlackElo "1378"]
[TimeControl "300"]
[EndTime "14:58:29 PDT"]
[Termination "TheSmoulderingMaster won by checkmate"]

1. e4 {[%clk 0:04:58.9]} 1... c6 {[%clk 0:04:53.6]} 2. d4 {[%clk 0:04:57.3]}
2... d5 {[%clk 0:04:52.1]} 3. Nc3 {[%clk 0:04:55]} 3... dxe4 {[%clk 0:04:46.5]}
4. Nxe4 {[%clk 0:04:53.4]} 4... Bf5 {[%clk 0:04:44.9]} 5. Ng3 {[%clk 0:04:52.4]}
5... Bg6 {[%clk 0:04:42.4]} 6. Nh3 {[%clk 0:04:51.8]} 6... e6 {[%clk 0:04:39.1]}
7. Nf4 {[%clk 0:04:51]} 7... Bd6 {[%clk 0:04:35]} 8. h4 {[%clk 0:04:49.4]} 8...
Bxf4 {[%clk 0:04:29.4]} 9. Bxf4 {[%clk 0:04:47.8]} 9... Nf6 {[%clk 0:04:26.6]}
10. h5 {[%clk 0:04:45.8]} 10... Bf5 {[%clk 0:04:19.2]} 11. Nxf5 {[%clk
0:04:44.1]} 11... exf5 {[%clk 0:04:17.2]} 12. Bd3 {[%clk 0:04:42.7]} 12... Qe7+
{[%clk 0:04:11.6]} 13. Kd2 {[%clk 0:04:36.4]} 13... Ne4+ {[%clk 0:04:04.3]} 14.
Bxe4 {[%clk 0:04:34.8]} 14... fxe4 {[%clk 0:04:00.4]} 15. Re1 {[%clk 0:04:32.6]}
15... f5 {[%clk 0:03:57.8]} 16. Rc1 {[%clk 0:04:29]} 16... Nd7 {[%clk
0:03:53.5]} 17. c3 {[%clk 0:04:27.9]} 17... O-O {[%clk 0:03:50.7]} 18. Kc2
{[%clk 0:04:26.6]} 18... b5 {[%clk 0:03:37.9]} 19. Kb1 {[%clk 0:04:24.8]} 19...
b4 {[%clk 0:03:33.9]} 20. g4 {[%clk 0:04:19.5]} 20... a5 {[%clk 0:03:09.8]} 21.
d5 {[%clk 0:04:13.5]} 21... cxd5 {[%clk 0:02:57.4]} 22. Qxd5+ {[%clk 0:04:11.7]}
22... Qf7 {[%clk 0:02:39.1]} 23. Qxf7+ {[%clk 0:04:04.2]} 23... Rxf7 {[%clk
0:02:35.7]} 24. gxf5 {[%clk 0:04:01.8]} 24... Rxf5 {[%clk 0:02:32.3]} 25. Rxe4
{[%clk 0:04:00.8]} 25... Kf7 {[%clk 0:02:19.1]} 26. cxb4 {[%clk 0:03:56.6]}
26... axb4 {[%clk 0:02:13.9]} 27. Rxb4 {[%clk 0:03:55.6]} 27... Re8 {[%clk
0:01:52.8]} 28. Rc7 {[%clk 0:03:50.1]} 28... Re7 {[%clk 0:01:50.9]} 29. Rd4
{[%clk 0:03:46.8]} 29... Nf6 {[%clk 0:01:43.9]} 30. Rxe7+ {[%clk 0:03:42.9]}
30... Kxe7 {[%clk 0:01:41.8]} 31. Bd6+ {[%clk 0:03:27.3]} 31... Ke6 {[%clk
0:01:37.7]} 32. f4 {[%clk 0:03:24.1]} 32... Nxh5 {[%clk 0:01:27.9]} 33. Be5
{[%clk 0:03:21.4]} 33... g5 {[%clk 0:01:19.9]} 34. Rd6+ {[%clk 0:03:19]} 34...
Ke7 {[%clk 0:01:11.1]} 35. Rh6 {[%clk 0:03:17.6]} 35... Nxf4 {[%clk 0:01:02.9]}
36. Rxh7+ {[%clk 0:03:14.6]} 36... Rf7 {[%clk 0:01:00]} 37. Rxf7+ {[%clk
0:03:03.9]} 37... Kxf7 {[%clk 0:00:57.7]} 38. Bxf4 {[%clk 0:03:00.5]} 38... gxf4
{[%clk 0:00:56.4]} 39. Kc2 {[%clk 0:03:00.1]} 39... Ke6 {[%clk 0:00:55.1]} 40.
Kd3 {[%clk 0:02:59.3]} 40... Ke5 {[%clk 0:00:53.9]} 41. Ke2 {[%clk 0:02:58.3]}
41... Ke4 {[%clk 0:00:52.4]} 42. Kf2 {[%clk 0:02:57.4]} 42... Kd4 {[%clk
0:00:36.4]} 43. Kf3 {[%clk 0:02:55.8]} 43... Kc4 {[%clk 0:00:36]} 44. Kxf4
{[%clk 0:02:55.1]} 44... Kb4 {[%clk 0:00:35.4]} 45. Ke4 {[%clk 0:02:52.7]} 45...
Ka4 {[%clk 0:00:33.4]} 46. Kd4 {[%clk 0:02:47.6]} 46... Ka5 {[%clk 0:00:30.6]}
47. Kc4 {[%clk 0:02:40.5]} 47... Ka4 {[%clk 0:00:28.8]} 48. a3 {[%clk
0:02:36.7]} 48... Ka5 {[%clk 0:00:27.6]} 49. Kb3 {[%clk 0:02:34.1]} 49... Kb5
{[%clk 0:00:26]} 50. a4+ {[%clk 0:02:32.8]} 50... Ka5 {[%clk 0:00:25]} 51. Ka3
{[%clk 0:02:32.1]} 51... Ka6 {[%clk 0:00:23.3]} 52. b4 {[%clk 0:02:31.3]} 52...
Kb6 {[%clk 0:00:22]} 53. a5+ {[%clk 0:02:30.6]} 53... Kb5 {[%clk 0:00:19.9]} 54.
Kb3 {[%clk 0:02:30.1]} 54... Ka6 {[%clk 0:00:18.5]} 55. Kc4 {[%clk 0:02:29.1]}
55... Ka7 {[%clk 0:00:16.8]} 56. Kc5 {[%clk 0:02:28.6]} 56... Ka6 {[%clk
0:00:15.7]} 57. Kc6 {[%clk 0:02:28]} 57... Ka7 {[%clk 0:00:14.1]} 58. b5 {[%clk
0:02:27.1]} 58... Ka8 {[%clk 0:00:11.9]} 59. Kb6 {[%clk 0:02:24.7]} 59... Kb8
{[%clk 0:00:10.5]} 60. a6 {[%clk 0:02:24.2]} 60... Ka8 {[%clk 0:00:09.2]} 61.
Kc7 {[%clk 0:02:22.3]} 61... Ka7 {[%clk 0:00:06.9]} 62. b6+ {[%clk 0:02:21.6]}
62... Ka8 {[%clk 0:00:05.5]} 63. b7+ {[%clk 0:02:20.8]} 63... Ka7 {[%clk
0:00:02.6]} 64. b8=Q+ {[%clk 0:02:19.8]} 64... Kxa6 {[%clk 0:00:01.8]} 65. Qb6#
{[%clk 0:02:19.1]} 1-0

[Event "Live Chess"]
[Site "Chess.com"]
[Date "2023.05.20"]
[Round "-"]
[White "KeithArkell"]
[Black "Pablo_dmp"]
[Result "1/2-1/2"]
[WhiteElo "2606"]
[BlackElo "1872"]
[TimeControl "300"]
[EndTime "14:58:30 PDT"]
[Termination "Game drawn by repetition"]

1. d4 {[%clk 0:04:57.5]} 1... Nf6 {[%clk 0:04:57.4]} 2. Nf3 {[%clk 0:04:56.7]}
2... e6 {[%clk 0:04:55.7]} 3. c4 {[%clk 0:04:55.9]} 3... Bb4+ {[%clk 0:04:51.5]}
4. Bd2 {[%clk 0:04:55.1]} 4... a5 {[%clk 0:04:49.9]} 5. g3 {[%clk 0:04:54]} 5...
b6 {[%clk 0:04:47.4]} 6. Bg2 {[%clk 0:04:53.2]} 6... Bb7 {[%clk 0:04:46.6]} 7.
O-O {[%clk 0:04:52.4]} 7... O-O {[%clk 0:04:43.8]} 8. Nh4 {[%clk 0:04:51.7]}
8... Bxg2 {[%clk 0:04:41.3]} 9. Nxg2 {[%clk 0:04:51.6]} 9... Qe7 {[%clk
0:04:37.1]} 10. c5 {[%clk 0:04:49]} 10... bxc5 {[%clk 0:04:32]} 11. Bg5 {[%clk
0:04:31]} 11... cxd4 {[%clk 0:04:16.7]} 12. Qxd4 {[%clk 0:04:29.9]} 12... Nc6
{[%clk 0:04:15.3]} 13. Qc4 {[%clk 0:04:25.4]} 13... Qc5 {[%clk 0:04:09]} 14.
Qxc5 {[%clk 0:04:16]} 14... Bxc5 {[%clk 0:04:08.9]} 15. Bxf6 {[%clk 0:04:14.1]}
15... gxf6 {[%clk 0:04:08.8]} 16. Rc1 {[%clk 0:04:12.2]} 16... Bd4 {[%clk
0:04:02.8]} 17. Nc3 {[%clk 0:04:09.8]} 17... Bxc3 {[%clk 0:03:57.7]} 18. Rxc3
{[%clk 0:04:08.4]} 18... Rab8 {[%clk 0:03:56.4]} 19. b3 {[%clk 0:04:07.5]} 19...
Rb5 {[%clk 0:03:52.8]} 20. Rac1 {[%clk 0:04:06]} 20... Nd4 {[%clk 0:03:39.3]}
21. Kf1 {[%clk 0:04:04.8]} 21... c6 {[%clk 0:03:36.2]} 22. Ne3 {[%clk
0:04:02.3]} 22... Nf5 {[%clk 0:03:20.5]} 23. Nc4 {[%clk 0:03:57.1]} 23... h5
{[%clk 0:02:54.5]} 24. e3 {[%clk 0:03:53.7]} 24... Ra8 {[%clk 0:02:28.4]} 25. a4
{[%clk 0:03:50.7]} 25... Rb4 {[%clk 0:02:17]} 26. h3 {[%clk 0:03:47.7]} 26...
Kf8 {[%clk 0:02:06]} 27. Ke2 {[%clk 0:03:46.1]} 27... Ke7 {[%clk 0:02:03.2]} 28.
g4 {[%clk 0:03:45.5]} 28... hxg4 {[%clk 0:02:01.5]} 29. hxg4 {[%clk 0:03:44.4]}
29... Nd6 {[%clk 0:02:00.6]} 30. Nd2 {[%clk 0:03:43.3]} 30... Ne4 {[%clk
0:01:58.1]} 31. Nxe4 {[%clk 0:03:39.7]} 31... Rxe4 {[%clk 0:01:58]} 32. f3
{[%clk 0:03:38.9]} 32... Rb4 {[%clk 0:01:56.4]} 33. Rd1 {[%clk 0:03:37.5]} 33...
Rab8 {[%clk 0:01:54.5]} 34. Rdd3 {[%clk 0:03:36.3]} 34... R8b6 {[%clk
0:01:47.5]} 35. Kd2 {[%clk 0:03:35.4]} 35... d5 {[%clk 0:01:44.9]} 36. Kc2
{[%clk 0:03:34.7]} 36... Kd6 {[%clk 0:01:44.3]} 37. e4 {[%clk 0:03:32.2]} 37...
e5 {[%clk 0:01:35.1]} 38. Kb2 {[%clk 0:03:22.9]} 38... d4 {[%clk 0:01:30.6]} 39.
Rc1 {[%clk 0:03:16.6]} 39... Rxa4 {[%clk 0:01:28.1]} 40. Rh1 {[%clk 0:03:15.6]}
40... Rc4 {[%clk 0:01:17.4]} 41. Rh6 {[%clk 0:03:11.6]} 41... Ke6 {[%clk
0:01:14.4]} 42. g5 {[%clk 0:03:10.5]} 42... Rcb4 {[%clk 0:01:03.4]} 43. Rxf6+
{[%clk 0:03:09.3]} 43... Ke7 {[%clk 0:01:01.7]} 44. Ka3 {[%clk 0:03:08.6]} 44...
c5 {[%clk 0:00:56.3]} 45. Rxb6 {[%clk 0:03:05.6]} 45... Rxb6 {[%clk 0:00:56.2]}
46. Ka4 {[%clk 0:03:04.7]} 46... c4 {[%clk 0:00:52.1]} 47. bxc4 {[%clk 0:03:03]}
47... Rb4+ {[%clk 0:00:51.7]} 48. Kxa5 {[%clk 0:03:02.5]} 48... Rxc4 {[%clk
0:00:51.6]} 49. Kb5 {[%clk 0:03:01.8]} 49... Rc3 {[%clk 0:00:50.7]} 50. Rd1
{[%clk 0:02:59]} 50... Rxf3 {[%clk 0:00:49.5]} 51. Kc5 {[%clk 0:02:57.6]} 51...
Ke6 {[%clk 0:00:45.4]} 52. Ra1 {[%clk 0:02:45.1]} 52... Rg3 {[%clk 0:00:41.2]}
53. Ra6+ {[%clk 0:02:43.5]} 53... Ke7 {[%clk 0:00:39.7]} 54. Ra7+ {[%clk
0:02:42.8]} 54... Ke6 {[%clk 0:00:38.6]} 55. Ra6+ {[%clk 0:02:41.8]} 55... Ke7
{[%clk 0:00:37.8]} 56. Ra7+ {[%clk 0:02:38.9]} 56... Ke6 {[%clk 0:00:30.1]} 57.
Ra6+ {[%clk 0:02:33.4]} 1/2-1/2

[Event "Live Chess"]
[Site "Chess.com"]
[Date "2023.05.20"]
[Round "-"]
[White "Alan_Richardson"]
[Black "manthanit"]
[Result "1-0"]
[WhiteElo "1676"]
[BlackElo "1015"]
[TimeControl "300"]
[EndTime "14:58:33 PDT"]
[Termination "Alan_Richardson won by resignation"]

1. d4 {[%clk 0:04:58.9]} 1... e6 {[%clk 0:04:52.2]} 2. Bf4 {[%clk 0:04:53.6]}
2... d5 {[%clk 0:04:51.1]} 3. Nf3 {[%clk 0:04:51.1]} 3... a6 {[%clk 0:04:50.6]}
4. e3 {[%clk 0:04:48.6]} 4... c5 {[%clk 0:04:49.4]} 5. c3 {[%clk 0:04:44.3]}
5... Nc6 {[%clk 0:04:43.1]} 6. Bd3 {[%clk 0:04:38.5]} 6... Qb6 {[%clk
0:04:40.4]} 7. Qd2 {[%clk 0:04:19.7]} 7... cxd4 {[%clk 0:04:35.3]} 8. exd4
{[%clk 0:04:17.7]} 8... Nf6 {[%clk 0:04:29.1]} 9. O-O {[%clk 0:04:13.7]} 9...
Ne4 {[%clk 0:04:27.4]} 10. Qe2 {[%clk 0:04:06.9]} 10... Bd6 {[%clk 0:03:58.8]}
11. Ne5 {[%clk 0:03:43.5]} 11... Nxe5 {[%clk 0:03:51.5]} 12. dxe5 {[%clk
0:03:38.4]} 12... Bc5 {[%clk 0:03:39.4]} 13. b4 {[%clk 0:03:28.8]} 13... Nxc3
{[%clk 0:03:15]} 14. Nxc3 {[%clk 0:03:20.9]} 14... Bd4 {[%clk 0:03:14]} 15. Rac1
{[%clk 0:03:03.8]} 15... Qxb4 {[%clk 0:03:12.4]} 16. Bd2 {[%clk 0:03:02.3]}
16... b5 {[%clk 0:02:52.4]} 17. Nxb5 {[%clk 0:02:49.6]} 17... Qb2 {[%clk
0:02:37.8]} 18. Nc7+ {[%clk 0:02:41.1]} 18... Ke7 {[%clk 0:02:35.6]} 19. Nxa8
{[%clk 0:02:39.8]} 19... Qxa2 {[%clk 0:02:32.4]} 20. Bb4+ {[%clk 0:02:36.5]}
20... Kd8 {[%clk 0:02:25.4]} 21. Qxa2 {[%clk 0:02:34.9]} 1-0

[Event "Live Chess"]
[Site "Chess.com"]
[Date "2023.05.20"]
[Round "-"]
[White "Mikhail_Golubev"]
[Black "xx_blindpuffin_xx"]
[Result "0-1"]
[WhiteElo "2505"]
[BlackElo "2208"]
[TimeControl "300"]
[EndTime "14:58:36 PDT"]
[Termination "xx_blindpuffin_xx won on time"]

1. e4 {[%clk 0:04:57.8]} 1... c6 {[%clk 0:04:56.9]} 2. d4 {[%clk 0:04:54]} 2...
d5 {[%clk 0:04:55.6]} 3. Nc3 {[%clk 0:04:53.7]} 3... dxe4 {[%clk 0:04:54.5]} 4.
Nxe4 {[%clk 0:04:53.6]} 4... Bf5 {[%clk 0:04:53.7]} 5. Ng3 {[%clk 0:04:51.9]}
5... Bg6 {[%clk 0:04:52.8]} 6. c3 {[%clk 0:04:51.6]} 6... Nd7 {[%clk 0:04:49.4]}
7. Nh3 {[%clk 0:04:46.8]} 7... e5 {[%clk 0:04:45.1]} 8. dxe5 {[%clk 0:04:40.5]}
8... Nxe5 {[%clk 0:04:45]} 9. Qxd8+ {[%clk 0:04:34.7]} 9... Rxd8 {[%clk
0:04:43.4]} 10. Nf4 {[%clk 0:04:33.8]} 10... Bc5 {[%clk 0:04:28.6]} 11. Nxg6
{[%clk 0:04:29.8]} 11... hxg6 {[%clk 0:04:28.5]} 12. Ne4 {[%clk 0:04:28.9]}
12... Bb6 {[%clk 0:04:23.3]} 13. Bf4 {[%clk 0:04:24]} 13... Nf6 {[%clk
0:03:44.1]} 14. Nxf6+ {[%clk 0:03:58.7]} 14... gxf6 {[%clk 0:03:43.9]} 15. Be2
{[%clk 0:03:53.7]} 15... O-O {[%clk 0:03:33.2]} 16. Bxe5 {[%clk 0:03:44.6]}
16... fxe5 {[%clk 0:03:31.6]} 17. h4 {[%clk 0:03:41.2]} 17... Rd6 {[%clk
0:03:22.6]} 18. h5 {[%clk 0:03:35]} 18... Kg7 {[%clk 0:03:19.4]} 19. hxg6 {[%clk
0:03:29.3]} 19... fxg6 {[%clk 0:03:17.9]} 20. Rf1 {[%clk 0:03:12]} 20... Rdf6
{[%clk 0:03:00.5]} 21. Bf3 {[%clk 0:02:58.8]} 21... e4 {[%clk 0:02:43.7]} 22.
Bxe4 {[%clk 0:02:57.3]} 22... Rxf2 {[%clk 0:02:37.7]} 23. Rxf2 {[%clk
0:02:53.9]} 23... Rxf2 {[%clk 0:02:37.6]} 24. O-O-O {[%clk 0:02:50.1]} 24...
Be3+ {[%clk 0:02:24.8]} 25. Kb1 {[%clk 0:02:48.6]} 25... Rf7 {[%clk 0:02:22.9]}
26. Rd6 {[%clk 0:02:43.1]} 26... Rf6 {[%clk 0:02:11.8]} 27. Rd7+ {[%clk
0:02:41.6]} 27... Rf7 {[%clk 0:02:10.9]} 28. Rd3 {[%clk 0:02:40.9]} 28... Bf4
{[%clk 0:02:04.9]} 29. b4 {[%clk 0:02:39.7]} 29... Be5 {[%clk 0:02:03]} 30. Kc2
{[%clk 0:02:36.3]} 30... Rf2+ {[%clk 0:01:59.4]} 31. Kb3 {[%clk 0:02:34.7]}
31... Rf7 {[%clk 0:01:58.9]} 32. a4 {[%clk 0:02:31.7]} 32... Re7 {[%clk
0:01:54.7]} 33. Bf3 {[%clk 0:02:28.8]} 33... Bf6 {[%clk 0:01:50.9]} 34. a5
{[%clk 0:02:27.1]} 34... Rc7 {[%clk 0:01:29.8]} 35. Rd6 {[%clk 0:02:15.6]} 35...
Be7 {[%clk 0:01:17.2]} 36. Re6 {[%clk 0:02:14.4]} 36... Kf7 {[%clk 0:01:16.6]}
37. Re4 {[%clk 0:02:13.1]} 37... c5 {[%clk 0:01:11.5]} 38. b5 {[%clk 0:02:07.2]}
38... b6 {[%clk 0:01:08.7]} 39. a6 {[%clk 0:02:01.1]} 39... Bf6 {[%clk
0:00:59.2]} 40. Bg4 {[%clk 0:01:55.3]} 40... Re7 {[%clk 0:00:57.1]} 41. Rc4
{[%clk 0:01:43.1]} 41... Re3 {[%clk 0:00:52.9]} 42. Bf3 {[%clk 0:01:39.7]} 42...
Ke7 {[%clk 0:00:49.8]} 43. Kc2 {[%clk 0:01:37.8]} 43... Kd6 {[%clk 0:00:46.5]}
44. Kd2 {[%clk 0:01:32.5]} 44... Bg5 {[%clk 0:00:43]} 45. Rg4 {[%clk 0:01:25.6]}
45... Re5+ {[%clk 0:00:31.6]} 46. Kd3 {[%clk 0:01:22.2]} 46... Ke6 {[%clk
0:00:25.7]} 47. Be4 {[%clk 0:01:11.6]} 47... Kf6 {[%clk 0:00:24.2]} 48. Rg3
{[%clk 0:01:05.1]} 48... Re7 {[%clk 0:00:23.3]} 49. Rf3+ {[%clk 0:01:02.7]}
49... Kg7 {[%clk 0:00:22.8]} 50. Bd5 {[%clk 0:00:55.6]} 50... Bf6 {[%clk
0:00:22.1]} 51. Kc4 {[%clk 0:00:45.3]} 51... Re1 {[%clk 0:00:21.1]} 52. Rd3
{[%clk 0:00:41.6]} 52... Re2 {[%clk 0:00:19.8]} 53. Bf3 {[%clk 0:00:37.5]} 53...
Re7 {[%clk 0:00:18.7]} 54. Bb7 {[%clk 0:00:28.5]} 54... Kf8 {[%clk 0:00:17.9]}
55. Rf3 {[%clk 0:00:26.4]} 55... Kg7 {[%clk 0:00:16.9]} 56. Kd5 {[%clk
0:00:24.9]} 56... Re5+ {[%clk 0:00:15.8]} 57. Kc6 {[%clk 0:00:23]} 57... Re7
{[%clk 0:00:14.8]} 58. Bc8 {[%clk 0:00:19.5]} 58... Be5 {[%clk 0:00:13.8]} 59.
Bd7 {[%clk 0:00:16.6]} 59... g5 {[%clk 0:00:11.3]} 60. Re3 {[%clk 0:00:15.5]}
60... Kf6 {[%clk 0:00:09.9]} 61. Re1 {[%clk 0:00:12.6]} 61... Bxc3 {[%clk
0:00:07.7]} 62. Rxe7 {[%clk 0:00:08.1]} 62... Kxe7 {[%clk 0:00:07.6]} 63. Bf5
{[%clk 0:00:06.1]} 63... Kd8 {[%clk 0:00:03.2]} 64. Kb7 {[%clk 0:00:04]} 64...
Be5 {[%clk 0:00:03.1]} 65. Kxa7 {[%clk 0:00:03.2]} 65... c4 {[%clk 0:00:03]} 66.
Kb7 {[%clk 0:00:02.2]} 66... c3 {[%clk 0:00:02.9]} 67. a7 {[%clk 0:00:01.6]}
67... Ke7 {[%clk 0:00:02.8]} 68. a8=Q {[%clk 0:00:00.3]} 68... Kd6 {[%clk
0:00:02.7]} 0-1

[Event "Live Chess"]
[Site "Chess.com"]
[Date "2023.05.20"]
[Round "-"]
[White "elvenstar"]
[Black "grillage"]
[Result "0-1"]
[WhiteElo "1569"]
[BlackElo "1848"]
[TimeControl "300"]
[EndTime "14:58:56 PDT"]
[Termination "grillage won on time"]

1. e4 {[%clk 0:04:58.1]} 1... d5 {[%clk 0:04:58.3]} 2. e5 {[%clk 0:04:56.2]}
2... c5 {[%clk 0:04:56.5]} 3. Nf3 {[%clk 0:04:53.3]} 3... Bg4 {[%clk 0:04:54.2]}
4. Be2 {[%clk 0:04:51]} 4... Nc6 {[%clk 0:04:53.2]} 5. Bb5 {[%clk 0:04:42]} 5...
e6 {[%clk 0:04:51.5]} 6. h3 {[%clk 0:04:39.3]} 6... Bxf3 {[%clk 0:04:50]} 7.
Qxf3 {[%clk 0:04:37.1]} 7... Ne7 {[%clk 0:04:49]} 8. d3 {[%clk 0:04:29.4]} 8...
a6 {[%clk 0:04:46.1]} 9. Bxc6+ {[%clk 0:04:26.5]} 9... Nxc6 {[%clk 0:04:45.2]}
10. Bf4 {[%clk 0:04:25.4]} 10... Nd4 {[%clk 0:04:38.5]} 11. Qd1 {[%clk
0:04:21.5]} 11... Qb6 {[%clk 0:04:34.9]} 12. b3 {[%clk 0:04:11.1]} 12... Be7
{[%clk 0:04:18.5]} 13. O-O {[%clk 0:04:09.7]} 13... O-O {[%clk 0:04:17.1]} 14.
c3 {[%clk 0:04:07.8]} 14... Nc6 {[%clk 0:04:13]} 15. Nd2 {[%clk 0:04:05]} 15...
Qc7 {[%clk 0:04:04.1]} 16. Nf3 {[%clk 0:04:03.1]} 16... Rad8 {[%clk 0:03:55.4]}
17. d4 {[%clk 0:04:01.7]} 17... cxd4 {[%clk 0:03:53.3]} 18. cxd4 {[%clk
0:04:00.7]} 18... Rc8 {[%clk 0:03:51.7]} 19. Rc1 {[%clk 0:03:59.1]} 19... Qb6
{[%clk 0:03:50.9]} 20. Qd3 {[%clk 0:03:53.6]} 20... Ba3 {[%clk 0:03:47.8]} 21.
Rc3 {[%clk 0:03:46.3]} 21... Ne7 {[%clk 0:03:46.1]} 22. Ng5 {[%clk 0:03:43.2]}
22... g6 {[%clk 0:03:39.4]} 23. h4 {[%clk 0:03:16]} 23... Nf5 {[%clk 0:03:36.1]}
24. Be3 {[%clk 0:03:12.6]} 24... Bb2 {[%clk 0:03:22]} 25. Rxc8 {[%clk
0:03:09.5]} 25... Rxc8 {[%clk 0:03:21]} 26. h5 {[%clk 0:02:51.3]} 26... Bxd4
{[%clk 0:03:11.4]} 27. Bxd4 {[%clk 0:02:42.9]} 27... Qxd4 {[%clk 0:03:09.5]} 28.
Qh3 {[%clk 0:02:29.6]} 28... Qh4 {[%clk 0:03:03.9]} 29. Qxh4 {[%clk 0:02:13.7]}
29... Nxh4 {[%clk 0:03:02.3]} 30. hxg6 {[%clk 0:02:09.9]} 30... hxg6 {[%clk
0:02:58.9]} 31. g4 {[%clk 0:02:02]} 31... Rc3 {[%clk 0:02:53.3]} 32. f4 {[%clk
0:01:45.5]} 32... Rg3+ {[%clk 0:02:42.4]} 33. Kh2 {[%clk 0:01:42.6]} 33... Rc3
{[%clk 0:02:17]} 34. Rf2 {[%clk 0:01:35.6]} 34... Kg7 {[%clk 0:02:12.4]} 35. f5
{[%clk 0:01:05.1]} 35... gxf5 {[%clk 0:02:08.4]} 36. gxf5 {[%clk 0:01:02]} 36...
Nxf5 {[%clk 0:02:07.4]} 37. Rg2 {[%clk 0:00:53.3]} 37... Kf8 {[%clk 0:01:42]}
38. Nh7+ {[%clk 0:00:48.3]} 38... Ke7 {[%clk 0:01:39.7]} 39. Nf6 {[%clk
0:00:42.6]} 39... Kd8 {[%clk 0:01:35.8]} 40. Rg8+ {[%clk 0:00:37.8]} 40... Kc7
{[%clk 0:01:35]} 41. Rf8 {[%clk 0:00:33.9]} 41... Rc2+ {[%clk 0:01:25.4]} 42.
Kh3 {[%clk 0:00:31.8]} 42... Rxa2 {[%clk 0:01:24.1]} 43. Rxf7+ {[%clk
0:00:30.8]} 43... Kc6 {[%clk 0:01:18.3]} 44. Ne8 {[%clk 0:00:18.5]} 44... d4
{[%clk 0:01:11.5]} 45. Rc7+ {[%clk 0:00:15.3]} 45... Kd5 {[%clk 0:01:10.8]} 46.
Nf6+ {[%clk 0:00:12.3]} 46... Kxe5 {[%clk 0:01:09.6]} 47. Ng4+ {[%clk
0:00:03.1]} 47... Kf4 {[%clk 0:01:08.7]} 0-1